lending/lending_fUSD_20250808
["ID","MTS","AMOUNT","RATE_DAILY","PERIOD"]
[378013618,1754668246900,-1054.16,0.00018495,2]
[378013620,1754668246909,-400.0,0.00018495,2]
[378013622,1754668246920,-887.57,0.00018495,2]
[378013624,1754668246929,-648.1,0.00018495,2]
[378013626,1754668246939,-400.0,0.00018495,2]
[378013628,1754668246948,-605.76,0.00018495,2]
[378013630,1754668246958,-797.7,0.00018495,2]
[378013632,1754668246967,-553.34,0.00018495,2]
[378013634,1754668246976,-568.2,0.00018495,2]
[378013636,1754668246985,-400.0,0.00018495,2]
[378013638,1754668246995,-400.0,0.00018495,2]
[378013640,1754668247005,-507.08,0.00018495,2]
[378013642,1754668247015,-1050.26,0.00018495,2]
[378013644,1754668247025,-400.0,0.00018495,2]
[378013646,1754668247034,-938.49,0.00018495,2]
[378013648,1754668247045,-422.94,0.00018495,2]
[378013650,1754668247056,-400.0,0.00018495,2]
[378013652,1754668247066,-500.0,0.00018495,2]
[378013654,1754668247075,-400.0,0.00018496,2]
[378013656,1754668247085,-510.94956485,0.00018496,2]
[378013658,1754668247094,-400.0,0.00018496,2]
[378013660,1754668247104,-400.0,0.00018496,2]
[378013662,1754668247114,-400.0,0.00018496,2]
[378013664,1754668247123,-400.0,0.00018496,2]
[378013666,1754668247133,-400.0,0.00018496,2]
[378013668,1754668247142,-538.7,0.00018496,2]
[378013670,1754668247152,-462.55,0.00018496,2]
[378013672,1754668247161,-400.0,0.00018496,2]
[378013674,1754668247172,-191.2,0.00018496,2]
[378013677,1754668247182,-400.0,0.00018496,2]
[378013678,1754668247191,-400.0,0.00018496,2]
[378013681,1754668247201,-400.0,0.00018496,2]
[378013683,1754668247211,-400.0,0.00018496,2]
[378013685,1754668247220,-400.0,0.00018496,2]
[378013687,1754668247230,-4713.48,0.00018496,2]
[378013689,1754668247240,-1375.36,0.00018496,2]
[378013691,1754668247249,-1232.45,0.00018496,2]
[378013693,1754668247258,-500.0,0.00018496,2]
[378013695,1754668247268,-400.0,0.00018496,2]
[378013697,1754668247277,-597.49,0.00018496,2]
[378013699,1754668247286,-1639.06,0.00018496,2]
[378013701,1754668247295,-629.7,0.00018496,2]
[378013703,1754668247305,-400.0,0.00018496,2]
[378013705,1754668247316,-4024.7,0.00018496,2]
[378013707,1754668247326,-3948.01,0.00018496,2]
[378013709,1754668247335,-3262.05,0.00018496,2]
[378013711,1754668247344,-2222.3,0.00018496,2]
[378013713,1754668247358,-504.04400718,0.00018496,2]
[378013715,1754668247367,-1612.74,0.00018496,2]
[378013717,1754668247377,-1162.11,0.00018496,2]
[378013719,1754668247387,-3160.86,0.00018496,2]
[378013721,1754668247399,-814.33,0.00018496,2]
[378013723,1754668247408,-994.71,0.00018496,2]
[378013725,1754668247417,-1125.81,0.00018496,2]
[378013727,1754668247430,-7279.14,0.00018496,2]
[378013729,1754668247439,-597.86,0.00018496,2]
[378013731,1754668247448,-400.0,0.00018496,2]
[378013733,1754668247458,-760.47,0.00018496,2]
[378013735,1754668247468,-400.0,0.00018496,2]
[378013737,1754668247477,-3213.2,0.00018496,2]
[378013739,1754668247486,-500.0,0.00018496,2]
[378013741,1754668247496,-498.85913601,0.00018496,2]
[378013743,1754668247505,-985.42,0.00018496,2]
[378013745,1754668247516,-500.0,0.00018496,2]
[378013747,1754668247527,-500.0,0.00018496,2]
[378013749,1754668247536,-3289.32,0.00018496,2]
[378013751,1754668247546,-3490.13,0.00018496,2]
[378013753,1754668247557,-500.0,0.00018496,2]
[378013755,1754668247567,-1380.32,0.00018496,2]
[378013757,1754668247577,-400.0,0.00018497,2]
[378013759,1754668247586,-400.0,0.00018497,2]
[378013761,1754668247595,-400.0,0.00018497,2]
[378013762,1754668247604,-400.0,0.00018497,2]
[378013764,1754668247613,-1000.0,0.00018497,2]
[378013766,1754668247623,-400.0,0.00018497,2]
[378013768,1754668247632,-400.0,0.00018497,2]
[378013770,1754668247641,-400.0,0.00018497,2]
[378013772,1754668247651,-400.0,0.00018497,2]
[378013774,1754668247660,-400.0,0.00018497,2]
[378013776,1754668247670,-400.0,0.00018497,2]
[378013778,1754668247679,-400.0,0.00018497,2]
[378013780,1754668247688,-400.0,0.00018497,2]
[378013782,1754668247696,-447.09,0.00018497,2]
[378013784,1754668247705,-435.43,0.00018497,2]
[378013786,1754668247713,-406.4,0.00018497,2]
[378013788,1754668247722,-400.0,0.00018497,2]
[378013790,1754668247731,-400.0,0.00018497,2]
[378013792,1754668247741,-400.0,0.00018497,2]
[378013794,1754668247751,-400.0,0.00018497,2]
[378013796,1754668247760,-400.0,0.00018497,2]
[378013798,1754668247770,-400.0,0.00018497,2]
[378013800,1754668247779,-400.0,0.00018497,2]
[378013802,1754668247789,-400.0,0.00018497,2]
[378013804,1754668247798,-400.0,0.00018497,2]
[378013806,1754668247808,-400.0,0.00018497,2]
[378013808,1754668247820,-520.06166351,0.00018497,2]
[378013811,1754668247830,-875.78,0.00018497,2]
[378013812,1754668247839,-500.89429208,0.00018497,2]
[378013814,1754668247848,-400.0,0.00018497,2]
[378013816,1754668247858,-400.0,0.00018497,2]
[378013819,1754668247868,-400.0,0.00018497,2]
[378013821,1754668247878,-400.0,0.00018497,2]
[378013823,1754668247887,-400.0,0.00018497,2]
[378013825,1754668247896,-464.07,0.00018497,2]
[378013827,1754668247906,-400.0,0.00018497,2]
[378013829,1754668247916,-400.0,0.00018497,2]
[378013831,1754668247925,-400.0,0.00018497,2]
[378013833,1754668247935,-400.0,0.00018497,2]
[378013835,1754668247944,-400.0,0.00018497,2]
[378013837,1754668247954,-400.0,0.00018497,2]
[378013839,1754668247963,-400.0,0.00018497,2]
[378013841,1754668247972,-400.0,0.00018497,2]
[378013843,1754668247981,-400.0,0.00018497,2]
[378013845,1754668247991,-400.0,0.00018497,2]
[378013847,1754668248000,-400.0,0.00018497,2]
[378013849,1754668248009,-400.0,0.00018497,2]
[378013851,1754668248019,-500.0,0.00018497,2]
[378013853,1754668248028,-400.0,0.00018497,2]
[378013855,1754668248038,-400.0,0.00018497,2]
[378013857,1754668248048,-400.0,0.00018497,2]
[378013859,1754668248058,-400.0,0.00018497,2]
[378013861,1754668248068,-400.0,0.00018497,2]
[378013873,1754668248165,-400.0,0.00018497,2]
[378013875,1754668248175,-400.0,0.00018497,2]
[378013877,1754668248184,-400.0,0.00018497,2]
[378013879,1754668248194,-400.0,0.00018497,2]
[378013881,1754668248203,-400.0,0.00018497,2]
[378013883,1754668248212,-400.0,0.00018497,2]
[378013885,1754668248221,-400.0,0.00018497,2]
[378013887,1754668248231,-400.0,0.00018497,2]
[378013889,1754668248240,-400.0,0.00018497,2]
[378013891,1754668248250,-500.0,0.00018497,2]
[378013893,1754668248260,-400.0,0.00018497,2]
[378013895,1754668248270,-400.0,0.00018497,2]
[378013897,1754668248280,-500.0,0.00018497,2]
[378013899,1754668248290,-400.0,0.00018497,2]
[378013901,1754668248300,-400.0,0.00018497,2]
[378013903,1754668248310,-441.71,0.00018497,2]
[378013905,1754668248320,-400.0,0.00018497,2]
[378013907,1754668248330,-400.0,0.00018497,2]
[378013909,1754668248340,-400.0,0.00018497,2]
[378013911,1754668248354,-400.0,0.00018497,2]
[378013913,1754668248364,-400.0,0.00018497,2]
[378013915,1754668248374,-400.0,0.00018497,2]
[378013917,1754668248383,-400.0,0.00018497,2]
[378013919,1754668248393,-404.73144603,0.00018497,2]
[378013921,1754668248402,-400.0,0.00018497,2]
[378013923,1754668248412,-400.0,0.00018497,2]
[378013925,1754668248422,-466.19976637,0.00018497,2]
[378013927,1754668248432,-492.66080725,0.00018497,2]
[378013929,1754668248442,-400.0,0.00018497,2]
[378013931,1754668248452,-400.0,0.00018497,2]
[378013933,1754668248461,-400.0,0.00018497,2]
[378013935,1754668248470,-400.0,0.00018497,2]
[378013937,1754668248480,-400.0,0.00018497,2]
[378013939,1754668248489,-400.0,0.00018497,2]
[378013941,1754668248499,-563.83,0.00018497,2]
[378013943,1754668248508,-407.79368245,0.00018497,2]
[378013945,1754668248518,-400.0,0.00018497,2]
[378013947,1754668248527,-242.84729975,0.00018497,2]
[378013949,1754668248536,-400.0,0.00018497,2]
[378013951,1754668248546,-400.0,0.00018497,2]
[378013953,1754668248556,-400.0,0.00018497,2]
[378013955,1754668248566,-400.0,0.00018497,2]
[378013957,1754668248575,-400.0,0.00018497,2]
[378013959,1754668248584,-400.0,0.00018497,2]
[378013961,1754668248594,-580.03,0.00018497,2]
[378013963,1754668248603,-400.0,0.00018497,2]
[378013964,1754668248613,-400.0,0.00018497,2]
[378013966,1754668248622,-400.0,0.00018497,2]
[378013968,1754668248632,-400.0,0.00018497,2]
[378013970,1754668248641,-400.0,0.00018497,2]
[378013972,1754668248650,-406.66,0.00018497,2]
[378013974,1754668248660,-400.0,0.00018497,2]
[378013976,1754668248669,-405.53154601,0.00018497,2]
[378013978,1754668248679,-486.72442487,0.00018497,2]
[378013980,1754668248688,-400.0,0.00018497,2]
[378013982,1754668248698,-400.0,0.00018497,2]
[378013984,1754668248707,-400.0,0.00018497,2]
[378013986,1754668248717,-400.0,0.00018497,2]
[378013988,1754668248726,-400.0,0.00018497,2]
[378013990,1754668248736,-400.0,0.00018497,2]
[378013992,1754668248745,-400.0,0.00018497,2]
[378013994,1754668248754,-400.0,0.00018497,2]
[378013996,1754668248764,-400.0,0.00018497,2]
[378013998,1754668248773,-400.0,0.00018497,2]
[378014000,1754668248782,-548.73597336,0.00018497,2]
[378014002,1754668248792,-400.0,0.00018497,2]
[378014004,1754668248801,-400.0,0.00018497,2]
[378014006,1754668248811,-400.0,0.00018497,2]
[378014008,1754668248820,-400.0,0.00018497,2]
[378014010,1754668248830,-491.85,0.00018497,2]
[378014012,1754668248839,-400.0,0.00018497,2]
[378014014,1754668248848,-500.0,0.00018497,2]
[378014016,1754668248858,-400.0,0.00018497,2]
[378014018,1754668248868,-400.0,0.00018497,2]
[378014020,1754668248877,-406.91758228,0.00018497,2]
[378014022,1754668248886,-400.0,0.00018497,2]
[378014024,1754668248895,-400.0,0.00018497,2]
[378014026,1754668248904,-400.0,0.00018497,2]
[378014028,1754668248914,-407.25874646,0.00018497,2]
[378014030,1754668248923,-400.0,0.00018497,2]
[378014032,1754668248932,-400.0,0.00018497,2]
[378014034,1754668248941,-400.0,0.00018497,2]
[378014036,1754668248951,-400.0,0.00018497,2]
[378014038,1754668248960,-400.0,0.00018497,2]
[378014040,1754668248970,-400.0,0.00018497,2]
[378014042,1754668248979,-537.78,0.00018497,2]
[378014044,1754668248988,-708.59,0.00018497,2]
[378014046,1754668248998,-400.0,0.00018497,2]
[378014048,1754668249007,-400.0,0.00018497,2]
[378014050,1754668249016,-402.86521248,0.00018497,2]
[378014052,1754668249026,-978.31,0.00018497,2]
[378014054,1754668249036,-400.0,0.00018497,2]
[378014056,1754668249045,-400.0,0.00018497,2]
[378014058,1754668249054,-400.0,0.00018497,2]
[378014060,1754668249063,-5540.6,0.00018497,2]
[378014062,1754668249073,-400.0,0.00018497,2]
[378014064,1754668249082,-400.0,0.00018497,2]
[378014066,1754668249091,-518.84,0.00018497,2]
[378014068,1754668249100,-400.0,0.00018497,2]
[378014070,1754668249110,-400.0,0.00018497,2]
[378014072,1754668249120,-401.94733228,0.00018497,2]
[378014074,1754668249130,-400.0,0.00018497,2]
[378014076,1754668249138,-400.0,0.00018497,2]
[378014078,1754668249148,-400.0,0.00018497,2]
[378014080,1754668249157,-500.0,0.00018497,2]
[378014082,1754668249167,-400.0,0.00018497,2]
[378014084,1754668249176,-1837.69,0.00018497,2]
[378014086,1754668249186,-400.0,0.00018497,2]
[378014088,1754668249196,-400.0,0.00018497,2]
[378014090,1754668249205,-400.8604239,0.00018497,2]
[378014092,1754668249215,-879.01,0.00018497,2]
[378014094,1754668249224,-400.0,0.00018497,2]
[378014096,1754668249234,-400.40451829,0.00018497,2]
[378014098,1754668249243,-400.0,0.00018497,2]
[378014100,1754668249252,-400.0,0.00018497,2]
[378014102,1754668249262,-500.0,0.00018497,2]
[378014104,1754668249271,-400.0,0.00018497,2]
[378014106,1754668249281,-400.0,0.00018497,2]
[378014108,1754668249290,-400.0,0.00018497,2]
[378014110,1754668249299,-400.0,0.00018497,2]
[378014112,1754668249308,-400.0,0.00018497,2]
[378014114,1754668249317,-400.0,0.00018497,2]
[378014116,1754668249327,-400.0,0.00018497,2]
[378014118,1754668249337,-401.7395571,0.00018497,2]
[378014120,1754668249346,-400.0,0.00018497,2]
[378014122,1754668249359,-1010.87,0.00018497,2]
[378014124,1754668249368,-410.05817418,0.00018497,2]
[378014126,1754668249377,-3422.68,0.00018497,2]
[378014128,1754668249386,-400.0,0.00018497,2]
[378014130,1754668249396,-400.0,0.00018497,2]
[378014132,1754668249405,-412.7304252,0.00018497,2]
[378014134,1754668249415,-348.85654675,0.00018497,2]
[378014135,1754668249424,-400.0,0.00018497,2]
[378014137,1754668249436,-411.13657077,0.00018497,2]
[378014139,1754668249447,-400.0,0.00018497,2]
[378014140,1754668249457,-408.42,0.00018497,2]
[378014142,1754668249466,-426.62,0.00018497,2]
[378014144,1754668249475,-400.0,0.00018497,2]
[378014145,1754668249485,-400.0,0.00018497,2]
[378014146,1754668249494,-400.0,0.00018497,2]
[378014147,1754668249504,-422.46389332,0.00018497,2]
[378014148,1754668249513,-1000.0,0.00018497,2]
[378014149,1754668249522,-403.5377319,0.00018497,2]
[378014150,1754668249531,-470.28,0.00018497,2]
[378014151,1754668249541,-400.0,0.00018497,2]
[378014152,1754668249550,-1514.22,0.00018497,2]
[378014153,1754668249560,-400.0,0.00018497,2]
[378014154,1754668249570,-406.42318965,0.00018497,2]
[378014155,1754668249579,-400.0,0.00018497,2]
[378014156,1754668249589,-400.0,0.00018497,2]
[378014157,1754668249599,-404.12276841,0.00018497,2]
[378014158,1754668249609,-400.0,0.00018497,2]
[378014159,1754668249618,-973.56,0.00018497,2]
[378014160,1754668249628,-400.0,0.00018497,2]
[378014161,1754668249638,-400.60185513,0.00018497,7]
[378014162,1754668249648,-400.0,0.00018497,2]
[378014163,1754668249657,-400.0,0.00018497,2]
[378014164,1754668249667,-400.0,0.00018497,2]
[378014165,1754668249676,-405.07206149,0.00018497,2]
[378014166,1754668249686,-661.89,0.00018497,2]
[378014167,1754668249696,-3596.39,0.00018497,2]
[378014168,1754668249705,-400.0,0.00018497,2]
[378014169,1754668249716,-400.0,0.00018497,2]
[378014170,1754668249725,-400.0,0.00018497,2]
[378014171,1754668249735,-400.0,0.00018497,2]
[378014172,1754668249744,-404.51666084,0.00018497,2]
[378014173,1754668249755,-408.10297048,0.00018497,2]
[378014174,1754668249766,-400.0,0.00018497,2]
[378014175,1754668249775,-410.49,0.00018497,2]
[378014176,1754668249786,-400.0,0.00018497,2]
[378014177,1754668249797,-400.0,0.00018497,2]
[378014178,1754668249807,-400.0,0.00018497,2]
[378014179,1754668249817,-400.0,0.00018497,2]
[378014180,1754668249828,-400.0,0.00018497,2]
[378014181,1754668249838,-400.0,0.00018497,2]
[378014182,1754668249849,-2956.0,0.00018497,2]
[378014183,1754668249860,-400.0,0.00018497,2]
[378014184,1754668249871,-400.0,0.00018497,2]
[378014185,1754668249881,-404.46877739,0.00018497,2]
[378014186,1754668249890,-400.0,0.00018497,2]
[378014187,1754668249900,-1722.61,0.00018497,2]
[378014188,1754668249909,-400.0,0.00018497,2]
[378014189,1754668249919,-400.0,0.00018497,2]
[378014190,1754668249929,-400.0,0.00018497,2]
[378014191,1754668249940,-400.0,0.00018497,2]
[378014192,1754668249951,-400.0,0.00018497,2]
[378014193,1754668249960,-400.0,0.00018497,2]
[378014194,1754668249970,-400.0,0.00018497,2]
[378014195,1754668249980,-400.0,0.00018497,2]
[378014196,1754668249990,-852.99,0.00018497,2]
[378014197,1754668249999,-403.71114102,0.00018497,2]
[378014198,1754668250009,-400.0,0.00018497,2]
[378014199,1754668250019,-972.65,0.00018497,2]
[378014200,1754668250030,-400.0,0.00018497,2]
[378014201,1754668250043,-400.0,0.00018497,2]
[378014202,1754668250052,-400.0,0.00018497,2]
[378014203,1754668250063,-400.0,0.00018497,2]
[378014204,1754668250072,-404.8066386,0.00018497,2]
[378014205,1754668250081,-613.08,0.00018497,2]
[378014206,1754668250091,-400.0,0.00018497,2]
[378014207,1754668250101,-400.0,0.00018497,2]
[378014208,1754668250111,-494.0,0.00018497,2]
[378014209,1754668250121,-400.0,0.00018497,2]
[378014210,1754668250132,-400.0,0.00018497,2]
[378014211,1754668250142,-403.48877183,0.00018497,2]
[378014212,1754668250152,-405.34110175,0.00018497,2]
[378014213,1754668250162,-400.0,0.00018497,2]
[378014214,1754668250172,-400.0,0.00018497,2]
[378014215,1754668250182,-400.0,0.00018497,2]
[378014216,1754668250192,-400.0,0.00018497,2]
[378014217,1754668250201,-400.0,0.00018497,2]
[378014218,1754668250210,-400.0,0.00018497,2]
[378014219,1754668250219,-479.97,0.00018497,2]
[378014220,1754668250229,-543.54,0.00018497,2]
[378014221,1754668250239,-404.60896321,0.00018497,2]
[378014222,1754668250249,-400.96087646,0.00018497,2]
[378014223,1754668250259,-3374.07,0.00018497,2]
[378014224,1754668250268,-400.0,0.00018497,2]
[378014225,1754668250278,-783.88,0.00018497,2]
[378014226,1754668250287,-401.99147776,0.00018497,2]
[378014227,1754668250296,-400.0,0.00018497,2]
[378014228,1754668250306,-406.20330056,0.00018497,2]
[378014229,1754668250317,-449.76,0.00018497,2]
[378014230,1754668250326,-400.0,0.00018497,2]
[378014231,1754668250335,-400.0,0.00018497,2]
[378014232,1754668250345,-405.36510067,0.00018497,2]
[378014233,1754668250357,-400.0,0.00018497,2]
[378014234,1754668250366,-400.0,0.00018497,2]
[378014235,1754668250375,-400.0,0.00018497,2]
[378014236,1754668250384,-1928.87,0.00018497,2]
[378014237,1754668250395,-400.37519822,0.00018497,2]
[378014238,1754668250404,-400.0,0.00018497,2]
[378014239,1754668250413,-403.51546406,0.00018497,2]
[378014240,1754668250422,-962.69,0.00018497,2]
[378014241,1754668250432,-400.0,0.00018497,2]
[378014242,1754668250442,-400.0,0.00018497,2]
[378014243,1754668250451,-476.94,0.00018497,2]
[378014244,1754668250460,-403.23614933,0.00018497,2]
[378014245,1754668250469,-402.29771824,0.00018497,2]
[378014246,1754668250478,-514.08,0.00018497,2]
[378014247,1754668250487,-400.0,0.00018497,2]
[378014248,1754668250496,-424.06,0.00018497,2]
[378014249,1754668250506,-400.64583023,0.00018497,2]
[378014250,1754668250514,-400.0,0.00018497,2]
[378014251,1754668250524,-493.52,0.00018497,2]
[378014252,1754668250534,-400.0,0.00018497,2]
[378014253,1754668250543,-400.0,0.00018497,2]
[378014254,1754668250553,-1070.59,0.00018497,2]
[378014255,1754668250564,-559.8,0.00018497,2]
[378014256,1754668250574,-400.0,0.00018497,2]
[378014257,1754668250583,-413.80264538,0.00018497,2]
[378014258,1754668250593,-400.0,0.00018497,2]
[378014259,1754668250603,-400.51438944,0.00018497,2]
[378014260,1754668250612,-593.7,0.00018497,2]
[378014261,1754668250622,-405.3682879,0.00018497,2]
[378014262,1754668250631,-400.0,0.00018497,2]
[378014263,1754668250640,-400.0,0.00018497,2]
[378014264,1754668250650,-404.17919002,0.00018497,2]
[378014265,1754668250660,-544.24839761,0.00018497,2]
[378014266,1754668250669,-401.94517161,0.00018497,2]
[378014267,1754668250679,-401.4351385,0.00018497,2]
[378014268,1754668250688,-1389.44,0.00018497,2]
[378014269,1754668250697,-400.0,0.00018497,2]
[378014270,1754668250707,-404.42478336,0.00018497,2]
[378014271,1754668250716,-423.72362737,0.00018497,2]
[378014272,1754668250726,-406.68144153,0.00018497,2]
[378014273,1754668250735,-400.0,0.00018497,2]
[378014274,1754668250744,-1018.55,0.00018497,2]
[378014275,1754668250753,-400.0,0.00018497,2]
[378014276,1754668250763,-400.0,0.00018497,2]
[378014277,1754668250772,-175.31367276,0.00018497,2]
[378014278,1754668250781,-400.81168314,0.00018497,2]
[378014279,1754668250791,-432.57,0.00018497,2]
[378014280,1754668250800,-409.23,0.00018497,2]
[378014281,1754668250811,-400.0,0.00018497,2]
[378014282,1754668250820,-400.0,0.00018497,2]
[378014283,1754668250830,-400.0,0.00018497,2]
[378014284,1754668250840,-3955.76,0.00018497,2]
[378014285,1754668250849,-400.59259799,0.00018497,2]
[378014286,1754668250859,-400.0,0.00018497,2]
[378014287,1754668250868,-400.0,0.00018497,2]
[378014288,1754668250877,-1336.35,0.00018497,2]
[378014289,1754668250887,-400.0,0.00018497,2]
[378014290,1754668250897,-473.02,0.00018497,2]
[378014291,1754668250907,-400.0,0.00018497,2]
[378014292,1754668250916,-400.0,0.00018497,2]
[378014293,1754668250926,-562.32,0.00018497,2]
[378014294,1754668250937,-400.0,0.00018497,2]
[378014295,1754668250947,-412.52128015,0.00018497,2]
[378014296,1754668250960,-400.0,0.00018497,2]
[378014297,1754668250972,-551.08,0.00018497,2]
[378014298,1754668250981,-414.19462752,0.00018497,2]
[378014299,1754668250991,-1378.01,0.00018497,2]
[378014300,1754668251000,-400.0,0.00018497,2]
[378014301,1754668251009,-354.25190791,0.00018497,2]
[378014302,1754668251019,-400.0,0.00018497,2]
[378014303,1754668251028,-400.0,0.00018497,2]
[378014304,1754668251038,-401.11535224,0.00018497,2]
[378014305,1754668251047,-400.0,0.00018497,2]
[378014306,1754668251056,-400.0,0.00018497,2]
[378014307,1754668251066,-400.0,0.00018497,2]
[378014308,1754668251075,-400.0,0.00018497,2]
[378014309,1754668251085,-400.95505127,0.00018497,2]
[378014310,1754668251096,-1028.06,0.00018497,2]
[378014311,1754668251105,-400.0,0.00018497,2]
[378014312,1754668251116,-400.0,0.00018497,2]
[378014313,1754668251126,-400.0,0.00018497,2]
[378014314,1754668251137,-500.0,0.00018497,2]
[378014315,1754668251148,-400.0,0.00018497,2]
[378014316,1754668251159,-408.63640994,0.00018497,2]
[378014317,1754668251168,-1653.62,0.00018497,2]
[378014318,1754668251178,-587.68,0.00018497,2]
[378014319,1754668251189,-400.0,0.00018497,2]
[378014320,1754668251202,-455.3,0.00018497,2]
[378014321,1754668251212,-400.0,0.00018497,2]
[378014322,1754668251222,-523.78,0.00018497,2]
[378014323,1754668251232,-400.0,0.00018497,2]
[378014324,1754668251244,-407.17,0.00018497,2]
[378014325,1754668251254,-400.0,0.00018497,2]
[378014326,1754668251264,-400.0,0.00018497,2]
[378014327,1754668251274,-429.0141831,0.00018497,2]
[378014328,1754668251284,-400.0,0.00018497,2]
[378014329,1754668251296,-470.8,0.00018497,2]
[378014330,1754668251306,-524.19,0.00018497,2]
[378014331,1754668251316,-551.8,0.00018497,2]
[378014332,1754668251326,-622.24,0.00018497,2]
[378014333,1754668251336,-400.44927308,0.00018497,2]
[378014334,1754668251346,-400.0,0.00018497,2]
[378014335,1754668251360,-400.0,0.00018497,2]
[378014336,1754668251370,-400.0,0.00018497,2]
[378014337,1754668251380,-425.44,0.00018497,2]
[378014338,1754668251389,-400.0,0.00018497,2]
[378014339,1754668251402,-400.0,0.00018497,2]
[378014340,1754668251411,-500.0,0.00018497,2]
[378014341,1754668251421,-400.0,0.00018497,2]
[378014342,1754668251432,-400.0,0.00018497,2]
[378014343,1754668251442,-400.0,0.00018497,2]
[378014344,1754668251452,-400.0,0.00018497,2]
[378014345,1754668251463,-901.13,0.00018497,2]
[378014346,1754668251473,-438.5,0.00018497,2]
[378014347,1754668251483,-400.0,0.00018497,2]
[378014348,1754668251493,-400.0,0.00018497,2]
[378014349,1754668251503,-400.0,0.00018497,2]
[378014350,1754668251512,-447.96,0.00018497,2]
[378014351,1754668251524,-400.0,0.00018497,2]
[378014352,1754668251534,-400.0,0.00018497,2]
[378014353,1754668251543,-400.0,0.00018497,2]
[378014354,1754668251554,-400.0,0.00018497,2]
[378014355,1754668251566,-493.51,0.00018497,2]
[378014356,1754668251575,-400.0,0.00018497,2]
[378014357,1754668251585,-400.0,0.00018497,2]
[378014358,1754668251595,-400.0,0.00018497,2]
[378014359,1754668251604,-561.03,0.00018497,2]
[378014360,1754668251614,-400.0,0.00018497,2]
[378014361,1754668251624,-400.0,0.00018497,2]
[378014362,1754668251634,-400.0,0.00018497,2]
[378014363,1754668251644,-400.0,0.00018497,2]
[378014364,1754668251654,-400.0,0.00018497,2]
[378014365,1754668251664,-400.0,0.00018497,2]
[378014366,1754668251673,-400.86927777,0.00018497,2]
[378014367,1754668251684,-400.0,0.00018497,2]
[378014368,1754668251694,-400.0,0.00018497,2]
[378014369,1754668251704,-1611.04,0.00018497,2]
[378014370,1754668251714,-400.84507904,0.00018497,2]
[378014371,1754668251724,-401.22857311,0.00018497,2]
[378014372,1754668251735,-400.0,0.00018497,2]
[378014373,1754668251744,-1848.48,0.00018497,2]
[378014374,1754668251756,-400.0,0.00018497,2]
[378014375,1754668251766,-587.35,0.00018497,2]
[378014376,1754668251776,-402.01076163,0.00018497,2]
[378014377,1754668251785,-422.43,0.00018497,2]
[378014378,1754668251794,-279.28002844,0.00018497,2]
[378014379,1754668251804,-400.0,0.00018497,2]
[378014380,1754668251814,-1416.81,0.00018497,2]
[378014381,1754668251823,-423.67834485,0.00018497,2]
[378014382,1754668251835,-402.00549256,0.00018497,2]
[378014383,1754668251845,-500.0,0.00018497,2]
[378014384,1754668251857,-478.8,0.00018497,2]